[Event "Titled Tuesday Blitz June 27 Late 2023"]
[White "Cooper, Aaron"]
[Black "Perez Torres, Nabi Isaias"]
[WhiteFideId "2634945"]
[BlackFideId "5120373"]
[WhiteElo "2187"]
[BlackElo "2306"]
[Result "0-1"]
[Round "9"]
[TimeControl "180+2"]
[Date "2023.06.27"]
[WhiteClock "0:00:22"]
[BlackClock "0:01:05"]
[Board "103"]

1. e4 {[%clk 0:03:00]}  c5 {[%clk 0:02:59]} 2. Nf3 {[%clk 0:03:00]}  d6 {[%clk 0:03:00]} 3. d4 {[%clk 0:03:00]}  cxd4 {[%clk 0:03:01]} 4. Nxd4 {[%clk 0:03:00]}  Nf6 {[%clk 0:03:01]} 5. Nc3 {[%clk 0:03:00]}  g6 {[%clk 0:03:02]} 6. Be2 {[%clk 0:02:57]}  Bg7 {[%clk 0:03:02]} 7. Be3 {[%clk 0:02:56]}  O-O {[%clk 0:03:03]} 8. O-O {[%clk 0:02:56]}  Nc6 {[%clk 0:03:03]} 9. h3 {[%clk 0:02:54]}  a6 {[%clk 0:02:59]} 10. f4 {[%clk 0:02:50]}  Bd7 {[%clk 0:02:57]} 11. Nb3 {[%clk 0:02:44]}  b5 {[%clk 0:02:54]} 12. Bf3 {[%clk 0:02:41]}  Rc8 {[%clk 0:02:54]} 13. Re1 {[%clk 0:02:35]}  Na5 {[%clk 0:02:54]} 14. Nxa5 {[%clk 0:02:30]}  Qxa5 {[%clk 0:02:55]} 15. Qd2 {[%clk 0:02:28]}  Rfe8 {[%clk 0:02:27]} 16. e5 {[%clk 0:02:28]}  b4 {[%clk 0:02:19]} 17. Ne2 {[%clk 0:02:21]}  dxe5 {[%clk 0:02:18]} 18. fxe5 {[%clk 0:02:18]}  Qxe5 {[%clk 0:02:15]} 19. Bd4 {[%clk 0:02:15]}  Qc7 {[%clk 0:02:08]} 20. Qxb4 {[%clk 0:01:45]}  e5 {[%clk 0:02:06]} 21. Bc3 {[%clk 0:01:42]}  e4 {[%clk 0:02:02]} 22. Bxf6 {[%clk 0:01:22]}  Bxf6 {[%clk 0:01:56]} 23. Bxe4 {[%clk 0:01:16]}  Rb8 {[%clk 0:01:50]} 24. Qa3 {[%clk 0:00:33]}  Rxe4 {[%clk 0:01:49]} 25. Qf3 {[%clk 0:00:32]}  Qb6+ {[%clk 0:01:33]} 26. Kh1 {[%clk 0:00:32]}  Rbe8 {[%clk 0:01:29]} 27. Rad1 {[%clk 0:00:28]}  Re3 {[%clk 0:01:24]} 28. Qf2 {[%clk 0:00:25]}  Bc6 {[%clk 0:01:12]} 29. Nf4 {[%clk 0:00:25]}  Rxe1+ {[%clk 0:01:06]} 30. Rxe1 {[%clk 0:00:22]}  Qxf2 {[%clk 0:01:05]} 0-1


[Site "https://www.chess.com"]

[Event "Titled Tuesday Blitz June 27 Late 2023"]
[White "Broca Jimenez, Fernando"]
[Black "Sokolov, Andrei"]
[WhiteFideId "5104742"]
[BlackFideId "11600306"]
[WhiteElo "2227"]
[BlackElo "2332"]
[Result "1-0"]
[Round "9"]
[TimeControl "180+2"]
[Date "2023.06.27"]
[WhiteClock "0:00:13"]
[BlackClock "0:00:11"]
[Board "107"]

1. Nf3 {[%clk 0:02:47]}  d5 {[%clk 0:02:59]} 2. b3 {[%clk 0:02:47]}  Bf5 {[%clk 0:02:56]} 3. Bb2 {[%clk 0:02:47]}  e6 {[%clk 0:02:56]} 4. d3 {[%clk 0:02:47]}  Nf6 {[%clk 0:02:53]} 5. Nbd2 {[%clk 0:02:47]}  Nbd7 {[%clk 0:02:49]} 6. g3 {[%clk 0:02:47]}  Bd6 {[%clk 0:02:46]} 7. Bg2 {[%clk 0:02:45]}  O-O {[%clk 0:02:45]} 8. O-O {[%clk 0:02:41]}  c6 {[%clk 0:02:45]} 9. Re1 {[%clk 0:02:28]}  Bg6 {[%clk 0:02:42]} 10. e4 {[%clk 0:02:25]}  dxe4 {[%clk 0:02:11]} 11. dxe4 {[%clk 0:02:26]}  Bc5 {[%clk 0:02:08]} 12. Qe2 {[%clk 0:02:18]}  Qc7 {[%clk 0:01:47]} 13. Rad1 {[%clk 0:02:11]}  Rad8 {[%clk 0:01:45]} 14. a3 {[%clk 0:02:06]}  b5 {[%clk 0:01:31]} 15. e5 {[%clk 0:01:01]}  Nd5 {[%clk 0:01:26]} 16. Ne4 {[%clk 0:00:57]}  Bxe4 {[%clk 0:01:07]} 17. Qxe4 {[%clk 0:00:53]}  Qb6 {[%clk 0:01:04]} 18. Rf1 {[%clk 0:00:43]}  Rfe8 {[%clk 0:00:42]} 19. Ng5 {[%clk 0:00:32]}  Nf8 {[%clk 0:00:34]} 20. Qf3 {[%clk 0:00:18]}  Qb7 {[%clk 0:00:14]} 21. Rd2 {[%clk 0:00:17]}  h6 {[%clk 0:00:13]} 22. Ne4 {[%clk 0:00:15]}  Be7 {[%clk 0:00:13]} 23. Rc1 {[%clk 0:00:14]}  Nb6 {[%clk 0:00:11]} 24. Rcd1 {[%clk 0:00:15]}  Rxd2 {[%clk 0:00:11]} 25. Rxd2 {[%clk 0:00:15]}  Qc7 {[%clk 0:00:11]} 26. Nd6 {[%clk 0:00:15]}  Rd8 {[%clk 0:00:10]} 27. Qxc6 {[%clk 0:00:13]}  Bxd6 {[%clk 0:00:09]} 28. exd6 {[%clk 0:00:12]}  Qxc6 {[%clk 0:00:09]} 29. Bxc6 {[%clk 0:00:13]}  a6 {[%clk 0:00:08]} 30. Bc3 {[%clk 0:00:11]}  Nfd7 {[%clk 0:00:04]} 31. Ba5 {[%clk 0:00:11]}  Rb8 {[%clk 0:00:04]} 32. Bxb6 {[%clk 0:00:10]}  Nxb6 {[%clk 0:00:04]} 33. d7 {[%clk 0:00:11]}  Rd8 {[%clk 0:00:04]} 34. c3 {[%clk 0:00:08]}  Kf8 {[%clk 0:00:05]} 35. f4 {[%clk 0:00:08]}  Ke7 {[%clk 0:00:05]} 36. a4 {[%clk 0:00:08]}  Nxd7 {[%clk 0:00:05]} 37. axb5 {[%clk 0:00:07]}  axb5 {[%clk 0:00:05]} 38. Bxb5 {[%clk 0:00:08]}  Nb6 {[%clk 0:00:05]} 39. Rxd8 {[%clk 0:00:08]}  Kxd8 {[%clk 0:00:06]} 40. Kf2 {[%clk 0:00:07]}  Nd5 {[%clk 0:00:06]} 41. c4 {[%clk 0:00:07]}  Nc7 {[%clk 0:00:07]} 42. Ke3 {[%clk 0:00:05]}  Ke7 {[%clk 0:00:06]} 43. Kd4 {[%clk 0:00:05]}  Kd6 {[%clk 0:00:06]} 44. c5+ {[%clk 0:00:05]}  Ke7 {[%clk 0:00:06]} 45. Bc4 {[%clk 0:00:06]}  f6 {[%clk 0:00:06]} 46. b4 {[%clk 0:00:07]}  Kd7 {[%clk 0:00:06]} 47. b5 {[%clk 0:00:07]}  Ne8 {[%clk 0:00:05]} 48. b6 {[%clk 0:00:07]}  Kc6 {[%clk 0:00:02]} 49. Kc3 {[%clk 0:00:05]}  e5 {[%clk 0:00:02]} 50. Kb4 {[%clk 0:00:04]}  exf4 {[%clk 0:00:01]} 51. gxf4 {[%clk 0:00:05]}  f5 {[%clk 0:00:02]} 52. Bb5+ {[%clk 0:00:05]}  Kd5 {[%clk 0:00:01]} 53. Bxe8 {[%clk 0:00:06]}  Kd4 {[%clk 0:00:01]} 54. b7 {[%clk 0:00:07]}  Ke4 {[%clk 0:00:02]} 55. b8=Q {[%clk 0:00:07]}  Ke3 {[%clk 0:00:01]} 56. Qe5+ {[%clk 0:00:08]}  Kf3 {[%clk 0:00:02]} 57. Qxf5 {[%clk 0:00:08]}  Ke3 {[%clk 0:00:03]} 58. Qg6 {[%clk 0:00:09]}  Kf3 {[%clk 0:00:03]} 59. Qxg7 {[%clk 0:00:09]}  Kf2 {[%clk 0:00:04]} 60. f5 {[%clk 0:00:09]}  Ke3 {[%clk 0:00:05]} 61. f6 {[%clk 0:00:10]}  Kf2 {[%clk 0:00:06]} 62. f7 {[%clk 0:00:11]}  Ke2 {[%clk 0:00:07]} 63. f8=Q {[%clk 0:00:11]}  Kd1 {[%clk 0:00:08]} 64. Qd6+ {[%clk 0:00:11]}  Kc2 {[%clk 0:00:09]} 65. Qgd4 {[%clk 0:00:11]}  Kc1 {[%clk 0:00:10]} 66. Qc3+ {[%clk 0:00:12]}  Kb1 {[%clk 0:00:10]} 67. Qd1+ {[%clk 0:00:12]}  Ka2 {[%clk 0:00:11]} 68. Qda1# {[%clk 0:00:13]} 1-0


[Site "https://www.chess.com"]

[Event "Titled Tuesday Blitz June 27 Late 2023"]
[White "Szente Varga, Fruzsina"]
[Black "Vila Dupla, Aurelio"]
[WhiteFideId "712264"]
[BlackFideId "2203383"]
[WhiteElo "2313"]
[BlackElo "2191"]
[Result "1-0"]
[Round "9"]
[TimeControl "180+2"]
[Date "2023.06.27"]
[WhiteClock "0:00:10"]
[BlackClock "0:00:00"]
[Board "108"]

1. e4 {[%clk 0:02:41]}  c5 {[%clk 0:02:58]} 2. Nf3 {[%clk 0:02:35]}  d6 {[%clk 0:02:58]} 3. d4 {[%clk 0:02:31]}  cxd4 {[%clk 0:02:57]} 4. Qxd4 {[%clk 0:02:32]}  Nc6 {[%clk 0:02:55]} 5. Bb5 {[%clk 0:02:32]}  Bd7 {[%clk 0:02:56]} 6. Qd3 {[%clk 0:02:32]}  g6 {[%clk 0:02:33]} 7. c4 {[%clk 0:02:31]}  Bg7 {[%clk 0:02:32]} 8. Nc3 {[%clk 0:02:31]}  Nf6 {[%clk 0:02:29]} 9. O-O {[%clk 0:02:31]}  O-O {[%clk 0:02:29]} 10. h3 {[%clk 0:02:29]}  a6 {[%clk 0:02:26]} 11. Bxc6 {[%clk 0:02:28]}  Bxc6 {[%clk 0:02:26]} 12. Be3 {[%clk 0:02:27]}  b5 {[%clk 0:02:24]} 13. cxb5 {[%clk 0:02:25]}  axb5 {[%clk 0:02:23]} 14. Nd4 {[%clk 0:02:25]}  Qd7 {[%clk 0:02:16]} 15. a3 {[%clk 0:02:07]}  Rab8 {[%clk 0:02:03]} 16. Rac1 {[%clk 0:01:50]}  Ba8 {[%clk 0:01:54]} 17. Ndxb5 {[%clk 0:01:32]}  Nxe4 {[%clk 0:01:47]} 18. Nxe4 {[%clk 0:01:31]}  Qxb5 {[%clk 0:01:43]} 19. Qxb5 {[%clk 0:00:53]}  Rxb5 {[%clk 0:01:43]} 20. Ng3 {[%clk 0:00:53]}  Bxb2 {[%clk 0:01:28]} 21. Rc7 {[%clk 0:00:52]}  Bf6 {[%clk 0:01:23]} 22. Rfc1 {[%clk 0:00:37]}  Rfb8 {[%clk 0:01:23]} 23. Kh2 {[%clk 0:00:31]}  Kg7 {[%clk 0:01:22]} 24. a4 {[%clk 0:00:27]}  Ra5 {[%clk 0:01:13]} 25. R1c4 {[%clk 0:00:27]}  Bd5 {[%clk 0:01:12]} 26. Rg4 {[%clk 0:00:24]}  Kh8 {[%clk 0:00:37]} 27. Bg5 {[%clk 0:00:20]}  Bxg5 {[%clk 0:00:34]} 28. Rxg5 {[%clk 0:00:21]}  e6 {[%clk 0:00:32]} 29. Rg4 {[%clk 0:00:17]}  Kg7 {[%clk 0:00:30]} 30. Nh5+ {[%clk 0:00:15]}  Kh6 {[%clk 0:00:29]} 31. Nf6 {[%clk 0:00:15]}  Kg7 {[%clk 0:00:25]} 32. Nxd5 {[%clk 0:00:15]}  Rxd5 {[%clk 0:00:24]} 33. Rf4 {[%clk 0:00:15]}  Rf8 {[%clk 0:00:23]} 34. Ra7 {[%clk 0:00:13]}  e5 {[%clk 0:00:20]} 35. Rb4 {[%clk 0:00:13]}  Rd4 {[%clk 0:00:17]} 36. Rxd4 {[%clk 0:00:09]}  exd4 {[%clk 0:00:17]} 37. Rd7 {[%clk 0:00:10]}  Ra8 {[%clk 0:00:15]} 38. Rxd6 {[%clk 0:00:09]}  Rxa4 {[%clk 0:00:15]} 39. Kg3 {[%clk 0:00:10]}  h5 {[%clk 0:00:15]} 40. Kf3 {[%clk 0:00:09]}  Kf8 {[%clk 0:00:14]} 41. Ke4 {[%clk 0:00:09]}  Ra2 {[%clk 0:00:13]} 42. Kf3 {[%clk 0:00:08]}  Rd2 {[%clk 0:00:12]} 43. g4 {[%clk 0:00:07]}  hxg4+ {[%clk 0:00:11]} 44. hxg4 {[%clk 0:00:08]}  Ke7 {[%clk 0:00:12]} 45. Rd5 {[%clk 0:00:07]}  Kf6 {[%clk 0:00:11]} 46. Kg3 {[%clk 0:00:05]}  Ke6 {[%clk 0:00:10]} 47. Rd8 {[%clk 0:00:05]}  Kf6 {[%clk 0:00:09]} 48. f4 {[%clk 0:00:05]}  Kg7 {[%clk 0:00:09]} 49. Kf3 {[%clk 0:00:06]}  Rd3+ {[%clk 0:00:09]} 50. Ke4 {[%clk 0:00:06]}  Rg3 {[%clk 0:00:08]} 51. g5 {[%clk 0:00:06]}  Rg4 {[%clk 0:00:08]} 52. Rxd4 {[%clk 0:00:06]}  Rg1 {[%clk 0:00:08]} 53. Ke5 {[%clk 0:00:06]}  Re1+ {[%clk 0:00:08]} 54. Re4 {[%clk 0:00:06]}  Rxe4+ {[%clk 0:00:08]} 55. Kxe4 {[%clk 0:00:07]}  f6 {[%clk 0:00:08]} 56. Kd5 {[%clk 0:00:05]}  fxg5 {[%clk 0:00:08]} 57. fxg5 {[%clk 0:00:05]}  Kg8 {[%clk 0:00:07]} 58. Ke6 {[%clk 0:00:06]}  Kg7 {[%clk 0:00:07]} 59. Ke7 {[%clk 0:00:06]}  Kg8 {[%clk 0:00:05]} 60. Kf6 {[%clk 0:00:07]}  Kh7 {[%clk 0:00:01]} 61. Kf7 {[%clk 0:00:07]}  Kh8 {[%clk 0:00:02]} 62. Kxg6 {[%clk 0:00:08]}  Kg8 {[%clk 0:00:02]} 63. Kh6 {[%clk 0:00:08]}  Kh8 {[%clk 0:00:02]} 64. g6 {[%clk 0:00:09]}  Kg8 {[%clk 0:00:00]} 65. g7 {[%clk 0:00:10]} 1-0


[Site "https://www.chess.com"]

[Event "Titled Tuesday Blitz June 27 Late 2023"]
[White "Oliveira, Tiago Batista"]
[Black "Bulgurlu, Okan"]
[WhiteFideId "2108291"]
[BlackFideId "6352316"]
[WhiteElo "2167"]
[BlackElo "2282"]
[Result "0-1"]
[Round "9"]
[TimeControl "180+2"]
[Date "2023.06.27"]
[WhiteClock "0:00:00"]
[BlackClock "0:00:39"]
[Board "110"]

1. d4 {[%clk 0:01:23]}  d5 {[%clk 0:02:58]} 2. c4 {[%clk 0:01:23]}  c6 {[%clk 0:02:57]} 3. Nf3 {[%clk 0:01:23]}  Nf6 {[%clk 0:02:58]} 4. Qc2 {[%clk 0:01:23]}  g6 {[%clk 0:02:57]} 5. Nc3 {[%clk 0:01:22]}  Bg7 {[%clk 0:02:56]} 6. e3 {[%clk 0:01:19]}  O-O {[%clk 0:02:56]} 7. b3 {[%clk 0:01:15]}  a6 {[%clk 0:02:54]} 8. Ba3 {[%clk 0:01:15]}  dxc4 {[%clk 0:02:52]} 9. Bxc4 {[%clk 0:01:12]}  Bf5 {[%clk 0:02:40]} 10. e4 {[%clk 0:01:11]}  Nxe4 {[%clk 0:02:35]} 11. Nxe4 {[%clk 0:01:10]}  Bxe4 {[%clk 0:02:35]} 12. Qxe4 {[%clk 0:01:09]}  Qa5+ {[%clk 0:02:36]} 13. Kf1 {[%clk 0:01:01]}  Qxa3 {[%clk 0:02:36]} 14. h4 {[%clk 0:00:56]}  b5 {[%clk 0:02:00]} 15. Bd3 {[%clk 0:00:51]}  Qd6 {[%clk 0:01:56]} 16. h5 {[%clk 0:00:51]}  Nd7 {[%clk 0:01:55]} 17. hxg6 {[%clk 0:00:50]}  fxg6 {[%clk 0:01:48]} 18. Re1 {[%clk 0:00:24]}  e5 {[%clk 0:01:28]} 19. dxe5 {[%clk 0:00:20]}  Nxe5 {[%clk 0:01:28]} 20. Nxe5 {[%clk 0:00:13]}  Bxe5 {[%clk 0:01:28]} 21. Bc2 {[%clk 0:00:12]}  Bd4 {[%clk 0:01:23]} 22. f3 {[%clk 0:00:10]}  Rae8 {[%clk 0:01:21]} 23. Qh4 {[%clk 0:00:10]}  Rxe1+ {[%clk 0:01:19]} 24. Qxe1 {[%clk 0:00:10]}  Qe5 {[%clk 0:01:02]} 25. Qe4 {[%clk 0:00:09]}  Qxe4 {[%clk 0:00:52]} 26. Bxe4 {[%clk 0:00:09]}  c5 {[%clk 0:00:52]} 27. Ke2 {[%clk 0:00:09]}  Rd8 {[%clk 0:00:49]} 28. Rc1 {[%clk 0:00:08]}  Kf7 {[%clk 0:00:46]} 29. a4 {[%clk 0:00:07]}  bxa4 {[%clk 0:00:43]} 30. bxa4 {[%clk 0:00:06]}  Rb8 {[%clk 0:00:44]} 31. Kd3 {[%clk 0:00:04]}  Rb3+ {[%clk 0:00:43]} 32. Kc4 {[%clk 0:00:04]}  Rb4+ {[%clk 0:00:43]} 33. Kd5 {[%clk 0:00:04]}  Rxa4 {[%clk 0:00:44]} 34. Rb1 {[%clk 0:00:03]}  Ra2 {[%clk 0:00:40]} 35. Rb7+ {[%clk 0:00:02]}  Kf6 {[%clk 0:00:39]} 36. Rxh7 {[%clk 0:00:02]}  Rxg2 {[%clk 0:00:39]} 37. Ra7 {[%clk 0:00:01]}  Ra2 {[%clk 0:00:39]} 38. Ra8 {[%clk 0:00:00]}  a5 {[%clk 0:00:39]} 0-1


[Site "https://www.chess.com"]

[Event "Titled Tuesday Blitz June 27 Late 2023"]
[White "NtcPou"]
[Black "Vaglio Munoz, Jaime"]
[BlackFideId "6500145"]
[WhiteElo "1989"]
[BlackElo "2276"]
[Result "0-1"]
[Round "9"]
[TimeControl "180+2"]
[Date "2023.06.27"]
[WhiteClock "0:00:07"]
[BlackClock "0:00:21"]
[Board "112"]

1. e4 {[%clk 0:03:00]}  c5 {[%clk 0:02:59]} 2. Nf3 {[%clk 0:02:59]}  Qa5 {[%clk 0:02:59]} 3. a4 {[%clk 0:02:44]}  a6 {[%clk 0:02:57]} 4. Nc3 {[%clk 0:02:41]}  b5 {[%clk 0:02:56]} 5. d4 {[%clk 0:02:33]}  cxd4 {[%clk 0:02:50]} 6. Nxd4 {[%clk 0:02:30]}  b4 {[%clk 0:02:46]} 7. Nd5 {[%clk 0:02:25]}  e6 {[%clk 0:02:46]} 8. Ne3 {[%clk 0:02:18]}  Bb7 {[%clk 0:02:45]} 9. Bd3 {[%clk 0:02:14]}  Nf6 {[%clk 0:02:44]} 10. Nb3 {[%clk 0:01:40]}  Qc7 {[%clk 0:02:32]} 11. f3 {[%clk 0:01:33]}  d5 {[%clk 0:02:29]} 12. exd5 {[%clk 0:01:25]}  Nxd5 {[%clk 0:02:30]} 13. Nxd5 {[%clk 0:01:25]}  Bxd5 {[%clk 0:02:31]} 14. O-O {[%clk 0:01:24]}  Be7 {[%clk 0:02:30]} 15. Be3 {[%clk 0:01:23]}  O-O {[%clk 0:02:29]} 16. Bf2 {[%clk 0:01:22]}  Nd7 {[%clk 0:02:28]} 17. Qe2 {[%clk 0:01:22]}  a5 {[%clk 0:02:22]} 18. Nd4 {[%clk 0:01:18]}  Nc5 {[%clk 0:02:17]} 19. Bb5 {[%clk 0:01:11]}  Bf6 {[%clk 0:02:14]} 20. c4 {[%clk 0:01:05]}  bxc3 {[%clk 0:02:12]} 21. bxc3 {[%clk 0:01:05]}  Nb3 {[%clk 0:01:50]} 22. Nxb3 {[%clk 0:01:01]}  Bxb3 {[%clk 0:01:51]} 23. Rab1 {[%clk 0:00:58]}  Bd5 {[%clk 0:01:49]} 24. c4 {[%clk 0:00:57]}  Bb7 {[%clk 0:01:47]} 25. Rfd1 {[%clk 0:00:52]}  h5 {[%clk 0:01:28]} 26. Qe3 {[%clk 0:00:52]}  h4 {[%clk 0:01:17]} 27. Qb6 {[%clk 0:00:47]}  Qxb6 {[%clk 0:01:13]} 28. Bxb6 {[%clk 0:00:45]}  Rfc8 {[%clk 0:01:00]} 29. Rd7 {[%clk 0:00:38]}  Bc6 {[%clk 0:01:00]} 30. Bxc6 {[%clk 0:00:38]}  Rxc6 {[%clk 0:01:00]} 31. c5 {[%clk 0:00:38]}  g5 {[%clk 0:00:49]} 32. Kf2 {[%clk 0:00:38]}  Kg7 {[%clk 0:00:48]} 33. Ke3 {[%clk 0:00:38]}  Kg6 {[%clk 0:00:47]} 34. Kd3 {[%clk 0:00:37]}  Be5 {[%clk 0:00:46]} 35. Kc4 {[%clk 0:00:36]}  Bxh2 {[%clk 0:00:44]} 36. Kb5 {[%clk 0:00:36]}  Rac8 {[%clk 0:00:44]} 37. Rc1 {[%clk 0:00:32]}  Bf4 {[%clk 0:00:42]} 38. Rc4 {[%clk 0:00:31]}  Be3 {[%clk 0:00:38]} 39. Ra7 {[%clk 0:00:21]}  Bd2 {[%clk 0:00:35]} 40. Bxa5 {[%clk 0:00:20]}  Bf4 {[%clk 0:00:30]} 41. Bb6 {[%clk 0:00:19]}  e5 {[%clk 0:00:30]} 42. Re7 {[%clk 0:00:18]}  Kf6 {[%clk 0:00:28]} 43. Rd7 {[%clk 0:00:17]}  Ke6 {[%clk 0:00:27]} 44. Rd5 {[%clk 0:00:16]}  f5 {[%clk 0:00:27]} 45. Rd8 {[%clk 0:00:15]}  g4 {[%clk 0:00:25]} 46. fxg4 {[%clk 0:00:13]}  fxg4 {[%clk 0:00:24]} 47. Rxc8 {[%clk 0:00:12]}  Rxc8 {[%clk 0:00:24]} 48. a5 {[%clk 0:00:12]}  h3 {[%clk 0:00:24]} 49. gxh3 {[%clk 0:00:11]}  gxh3 {[%clk 0:00:25]} 50. Rc1 {[%clk 0:00:10]}  h2 {[%clk 0:00:25]} 51. Rh1 {[%clk 0:00:09]}  e4 {[%clk 0:00:24]} 52. a6 {[%clk 0:00:10]}  e3 {[%clk 0:00:25]} 53. a7 {[%clk 0:00:10]}  e2 {[%clk 0:00:25]} 54. Ka6 {[%clk 0:00:10]}  Bg3 {[%clk 0:00:21]} 55. Kb7 {[%clk 0:00:10]}  Rh8 {[%clk 0:00:20]} 56. a8=Q {[%clk 0:00:10]}  Rxa8 {[%clk 0:00:20]} 57. Kxa8 {[%clk 0:00:10]}  e1=Q {[%clk 0:00:21]} 58. Rxe1+ {[%clk 0:00:08]}  Bxe1 {[%clk 0:00:22]} 59. c6 {[%clk 0:00:08]}  Bg3 {[%clk 0:00:22]} 60. c7 {[%clk 0:00:08]}  Bxc7 {[%clk 0:00:22]} 61. Bxc7 {[%clk 0:00:09]}  h1=Q+ {[%clk 0:00:22]} 62. Kb8 {[%clk 0:00:09]}  Kd7 {[%clk 0:00:22]} 63. Bb6 {[%clk 0:00:08]}  Qb1 {[%clk 0:00:22]} 64. Ka7 {[%clk 0:00:08]}  Kc6 {[%clk 0:00:22]} 65. Ka6 {[%clk 0:00:07]}  Qxb6# {[%clk 0:00:21]} 0-1


[Site "https://www.chess.com"]

[Event "Titled Tuesday Blitz June 27 Late 2023"]
[White "Dmitriev, Sergey"]
[Black "Aqib Javaid Butt"]
[WhiteFideId "14101785"]
[BlackFideId "7801262"]
[WhiteElo "1949"]
[BlackElo "2024"]
[Result "1-0"]
[Round "9"]
[TimeControl "180+2"]
[Date "2023.06.27"]
[WhiteClock "0:00:47"]
[BlackClock "0:00:16"]
[Board "114"]

1. d4 {[%clk 0:03:00]}  d5 {[%clk 0:02:55]} 2. Bf4 {[%clk 0:03:00]}  c6 {[%clk 0:02:55]} 3. Nf3 {[%clk 0:03:01]}  Nf6 {[%clk 0:02:32]} 4. e3 {[%clk 0:03:00]}  Bf5 {[%clk 0:02:26]} 5. Bd3 {[%clk 0:02:59]}  Bxd3 {[%clk 0:02:25]} 6. cxd3 {[%clk 0:02:59]}  e6 {[%clk 0:02:26]} 7. h3 {[%clk 0:02:59]}  Bd6 {[%clk 0:02:25]} 8. Ne5 {[%clk 0:02:57]}  Qc7 {[%clk 0:02:24]} 9. Nd2 {[%clk 0:02:47]}  Nfd7 {[%clk 0:02:24]} 10. Qh5 {[%clk 0:02:38]}  Nxe5 {[%clk 0:02:20]} 11. dxe5 {[%clk 0:02:35]}  Be7 {[%clk 0:02:16]} 12. Nf3 {[%clk 0:02:32]}  Nd7 {[%clk 0:02:09]} 13. O-O {[%clk 0:02:28]}  g6 {[%clk 0:02:04]} 14. Qg4 {[%clk 0:02:23]}  Bf8 {[%clk 0:01:54]} 15. d4 {[%clk 0:02:19]}  Bg7 {[%clk 0:01:53]} 16. Rac1 {[%clk 0:02:07]}  O-O {[%clk 0:01:53]} 17. Qh4 {[%clk 0:01:56]}  Qd8 {[%clk 0:01:51]} 18. Qg3 {[%clk 0:01:45]}  f6 {[%clk 0:01:48]} 19. exf6 {[%clk 0:01:44]}  Qxf6 {[%clk 0:01:49]} 20. Bd6 {[%clk 0:01:32]}  Rfe8 {[%clk 0:01:38]} 21. Ne5 {[%clk 0:01:30]}  Nxe5 {[%clk 0:01:38]} 22. dxe5 {[%clk 0:01:25]}  Qf5 {[%clk 0:01:34]} 23. f3 {[%clk 0:01:22]}  Qd3 {[%clk 0:01:32]} 24. f4 {[%clk 0:01:17]}  Bf8 {[%clk 0:01:30]} 25. Bxf8 {[%clk 0:01:13]}  Rxf8 {[%clk 0:01:31]} 26. Rcd1 {[%clk 0:01:09]}  Qe4 {[%clk 0:01:29]} 27. Qg4 {[%clk 0:01:07]}  Qf5 {[%clk 0:01:29]} 28. Qh4 {[%clk 0:01:07]}  Kg7 {[%clk 0:01:21]} 29. Qe7+ {[%clk 0:01:07]}  Qf7 {[%clk 0:01:20]} 30. Qd6 {[%clk 0:01:06]}  Rad8 {[%clk 0:01:18]} 31. Qc5 {[%clk 0:01:06]}  Ra8 {[%clk 0:01:14]} 32. b4 {[%clk 0:01:04]}  Qc7 {[%clk 0:01:12]} 33. b5 {[%clk 0:01:04]}  Rf7 {[%clk 0:00:58]} 34. Rc1 {[%clk 0:01:03]}  Rc8 {[%clk 0:00:54]} 35. bxc6 {[%clk 0:01:01]}  bxc6 {[%clk 0:00:49]} 36. Qa3 {[%clk 0:01:00]}  c5 {[%clk 0:00:46]} 37. Rc2 {[%clk 0:00:58]}  Qb6 {[%clk 0:00:41]} 38. Rfc1 {[%clk 0:00:56]}  c4 {[%clk 0:00:40]} 39. Kf2 {[%clk 0:00:56]}  Rfc7 {[%clk 0:00:39]} 40. Rc3 {[%clk 0:00:55]}  d4 {[%clk 0:00:38]} 41. exd4 {[%clk 0:00:54]}  Qxd4+ {[%clk 0:00:39]} 42. Kg3 {[%clk 0:00:54]}  g5 {[%clk 0:00:36]} 43. fxg5 {[%clk 0:00:53]}  Qxe5+ {[%clk 0:00:36]} 44. Kf2 {[%clk 0:00:52]}  Rf8+ {[%clk 0:00:29]} 45. Kg1 {[%clk 0:00:53]}  Qxg5 {[%clk 0:00:19]} 46. Qd6 {[%clk 0:00:51]}  Qf6 {[%clk 0:00:17]} 47. Qxc7+ {[%clk 0:00:51]}  Rf7 {[%clk 0:00:17]} 48. Rg3+ {[%clk 0:00:50]}  Kh8 {[%clk 0:00:16]} 49. Qc8+ {[%clk 0:00:50]}  Rf8 {[%clk 0:00:17]} 50. Qxc4 {[%clk 0:00:47]}  Qf2+ {[%clk 0:00:17]} 51. Kh2 {[%clk 0:00:48]}  Qf4 {[%clk 0:00:16]} 52. Qxf4 {[%clk 0:00:47]}  Rxf4 {[%clk 0:00:15]} 53. Rc8+ {[%clk 0:00:47]}  Rf8 {[%clk 0:00:16]} 54. Rxf8# {[%clk 0:00:47]} 1-0


[Site "https://www.chess.com"]

[Event "Titled Tuesday Blitz June 27 Late 2023"]
[White "Martinez Alcantara, Jose Eduardo"]
[Black "Yoo, Christopher Woojin"]
[WhiteFideId "3805662"]
[BlackFideId "30909694"]
[WhiteElo "3033"]
[BlackElo "3003"]
[Result "1-0"]
[Round "10"]
[TimeControl "180+2"]
[Date "2023.06.27"]
[WhiteClock "0:01:00"]
[BlackClock "0:00:20"]
[Board "2"]

1. e4 {[%clk 0:03:00]}  e6 {[%clk 0:02:58]} 2. d4 {[%clk 0:03:01]}  d5 {[%clk 0:02:59]} 3. Nd2 {[%clk 0:03:01]}  Be7 {[%clk 0:02:59]} 4. Ngf3 {[%clk 0:03:02]}  Nf6 {[%clk 0:02:59]} 5. Bd3 {[%clk 0:03:02]}  c5 {[%clk 0:02:58]} 6. dxc5 {[%clk 0:03:03]}  d4 {[%clk 0:02:58]} 7. Nb3 {[%clk 0:02:59]}  Nc6 {[%clk 0:02:54]} 8. Nbxd4 {[%clk 0:02:50]}  Nxd4 {[%clk 0:02:51]} 9. Nxd4 {[%clk 0:02:51]}  Bxc5 {[%clk 0:02:50]} 10. Nb3 {[%clk 0:02:51]}  Bb4+ {[%clk 0:02:39]} 11. Bd2 {[%clk 0:02:50]}  Qb6 {[%clk 0:02:31]} 12. Bxb4 {[%clk 0:02:47]}  Qxb4+ {[%clk 0:02:30]} 13. Qd2 {[%clk 0:02:48]}  Qxd2+ {[%clk 0:02:20]} 14. Kxd2 {[%clk 0:02:46]}  b6 {[%clk 0:02:21]} 15. f3 {[%clk 0:02:46]}  Bb7 {[%clk 0:02:22]} 16. Ke3 {[%clk 0:02:46]}  Ke7 {[%clk 0:02:20]} 17. a4 {[%clk 0:02:47]}  a5 {[%clk 0:02:19]} 18. Bb5 {[%clk 0:02:44]}  Rhc8 {[%clk 0:02:19]} 19. c3 {[%clk 0:02:43]}  Ne8 {[%clk 0:02:11]} 20. Bxe8 {[%clk 0:02:43]}  Kxe8 {[%clk 0:02:12]} 21. Rhd1 {[%clk 0:02:40]}  Ke7 {[%clk 0:02:11]} 22. Nd4 {[%clk 0:02:40]}  Rc4 {[%clk 0:02:09]} 23. Nb5 {[%clk 0:02:39]}  Bc6 {[%clk 0:02:08]} 24. Na3 {[%clk 0:02:12]}  Rc5 {[%clk 0:02:06]} 25. Nc2 {[%clk 0:02:13]}  e5 {[%clk 0:01:52]} 26. Rd3 {[%clk 0:01:47]}  Bd7 {[%clk 0:01:31]} 27. b3 {[%clk 0:01:45]}  b5 {[%clk 0:01:23]} 28. axb5 {[%clk 0:01:42]}  Bxb5 {[%clk 0:01:00]} 29. c4 {[%clk 0:01:35]}  Bc6 {[%clk 0:00:56]} 30. Rc3 {[%clk 0:01:33]}  Rb8 {[%clk 0:00:53]} 31. Ne1 {[%clk 0:01:28]}  a4 {[%clk 0:00:49]} 32. Nd3 {[%clk 0:01:27]}  Ra5 {[%clk 0:00:44]} 33. b4 {[%clk 0:01:27]}  Raa8 {[%clk 0:00:44]} 34. b5 {[%clk 0:01:28]}  Be8 {[%clk 0:00:44]} 35. Rca3 {[%clk 0:01:26]}  f6 {[%clk 0:00:34]} 36. Rxa4 {[%clk 0:01:26]}  Rxa4 {[%clk 0:00:35]} 37. Rxa4 {[%clk 0:01:26]}  Rb7 {[%clk 0:00:35]} 38. Nb4 {[%clk 0:01:20]}  Kd6 {[%clk 0:00:35]} 39. Nd3 {[%clk 0:01:15]}  h5 {[%clk 0:00:29]} 40. Kd2 {[%clk 0:01:14]}  h4 {[%clk 0:00:23]} 41. Ra6+ {[%clk 0:01:11]}  Ke7 {[%clk 0:00:23]} 42. Nb4 {[%clk 0:01:09]}  Bf7 {[%clk 0:00:21]} 43. Nd5+ {[%clk 0:01:08]}  Kd7 {[%clk 0:00:20]} 44. c5 {[%clk 0:01:00]} 1-0


[Site "https://www.chess.com"]